fUSD/lending_fUSD_20240821
["ID","MTS","AMOUNT","RATE_DAILY","PERIOD"]
[335417535,1724209834817,-151.0,0.00014225,2]
[335417536,1724209834826,-183.653583,0.00014225,2]
[335417537,1724209834835,-209.449302,0.00014225,2]
[335417538,1724209834845,-1196.472358,0.00014225,2]
[335417539,1724209834854,-1196.472358,0.00014225,2]
[335417540,1724209834865,-1196.472358,0.00014225,2]
[335417541,1724209834874,-1196.472358,0.00014225,2]
[335417542,1724209834885,-362.77401,0.00014225,2]
[335417543,1724209834895,-362.77401,0.00014225,2]
[335417544,1724209834905,-151.0,0.00014225,2]
[335417545,1724209834915,-362.77401,0.00014225,2]
[335417546,1724209834924,-151.0,0.00014225,2]
[335417547,1724209834934,-362.77401,0.00014225,2]
[335417548,1724209834943,-337.975096,0.00014225,2]
[335417549,1724209834953,-337.975096,0.00014225,2]
[335417550,1724209834962,-151.0,0.00014225,2]
[335417551,1724209834972,-151.0,0.00014225,2]
[335417552,1724209834982,-337.975096,0.00014225,2]
[335417553,1724209834991,-337.975096,0.00014225,2]
[335417554,1724209835001,-228.592688,0.00014225,2]
[335417555,1724209835010,-796.413897,0.00014225,2]
[335417556,1724209835019,-796.413897,0.00014225,2]
[335417557,1724209835029,-796.413897,0.00014225,2]
[335417558,1724209835039,-796.413897,0.00014225,2]
[335417559,1724209835049,-796.413897,0.00014225,2]
[335417560,1724209835059,-796.413897,0.00014225,2]
[335417561,1724209835068,-1142.107648,0.00014225,2]
[335417562,1724209835077,-1142.107648,0.00014225,2]
[335417563,1724209835086,-1142.107648,0.00014225,2]
[335417564,1724209835096,-1142.107648,0.00014225,2]
[335417565,1724209835105,-1142.107648,0.00014225,2]
[335417566,1724209835114,-1142.107648,0.00014225,2]
[335417567,1724209835123,-151.0,0.00014225,2]
[335417568,1724209835132,-151.0,0.00014225,2]
[335417569,1724209835141,-151.0,0.00014225,2]
[335417570,1724209835151,-151.0,0.00014225,2]
[335417571,1724209835160,-153.310494,0.00014225,2]
[335417572,1724209835169,-151.00000082,0.00014225,2]
[335417573,1724209835179,-151.0,0.00014225,2]
[335417574,1724209835187,-151.0,0.00014225,2]
[335417575,1724209835197,-151.0,0.00014225,2]
[335417576,1724209835206,-151.0,0.00014225,2]
[335417577,1724209835215,-784.93178,0.00014225,2]
[335417578,1724209835225,-784.93178,0.00014225,2]
[335417579,1724209835234,-784.93178,0.00014225,2]
[335417580,1724209835243,-784.93178,0.00014225,2]
[335417581,1724209835252,-784.93178,0.00014225,2]
[335417582,1724209835261,-784.93178,0.00014225,2]
[335417583,1724209835271,-784.93178,0.00014225,2]
[335417584,1724209835279,-784.93178,0.00014225,2]
[335417585,1724209835289,-156.271583,0.00014225,2]
[335417586,1724209835298,-156.271583,0.00014225,2]
[335417587,1724209835307,-156.271583,0.00014225,2]
[335417588,1724209835316,-156.271583,0.00014225,2]
[335417589,1724209835325,-156.271583,0.00014225,2]
[335417590,1724209835334,-156.271583,0.00014225,2]
[335417591,1724209835343,-156.271583,0.00014225,2]
[335417592,1724209835352,-156.271583,0.00014225,2]
[335417593,1724209835361,-201.436954,0.00014225,2]
[335417594,1724209835371,-201.436954,0.00014225,2]
[335417595,1724209835380,-201.436954,0.00014225,2]
[335417596,1724209835389,-201.436954,0.00014225,2]
[335417597,1724209835398,-201.436954,0.00014225,2]
[335417598,1724209835407,-201.436954,0.00014225,2]
[335417599,1724209835417,-201.436954,0.00014225,2]
[335417600,1724209835426,-201.436954,0.00014225,2]
[335417601,1724209835435,-493.579171,0.00014225,2]
[335417602,1724209835444,-493.579171,0.00014225,2]
[335417603,1724209835457,-493.579171,0.00014225,2]
[335417604,1724209835466,-493.579171,0.00014225,2]
[335417605,1724209835475,-493.579171,0.00014225,2]
[335417606,1724209835484,-493.579171,0.00014225,2]
[335417607,1724209835494,-493.579171,0.00014225,2]
[335417608,1724209835504,-493.579171,0.00014225,2]
[335417609,1724209835514,-151.0,0.00014225,2]
[335417610,1724209835526,-151.704512,0.00014225,2]
[335417611,1724209835539,-151.0,0.00014225,2]
[335417612,1724209835553,-151.0,0.00014225,2]
[335417613,1724209835562,-151.0,0.00014225,2]
[335417614,1724209835571,-151.0,0.00014225,2]
[335417615,1724209835580,-151.0,0.00014225,2]
[335417616,1724209835589,-151.0,0.00014225,2]
[335417617,1724209835600,-151.0,0.00014225,2]
[335417618,1724209835609,-151.0,0.00014225,2]
[335417619,1724209835621,-151.0,0.00014225,2]
[335417620,1724209835630,-151.0,0.00014225,2]
[335417621,1724209835639,-151.0,0.00014225,2]
[335417622,1724209835648,-244.818846,0.00014225,2]
[335417623,1724209835657,-151.0,0.00014225,2]
[335417624,1724209835666,-151.0,0.00014225,2]
[335417625,1724209835675,-201.744313,0.00014225,2]
[335417626,1724209835685,-151.0,0.00014225,2]
[335417627,1724209835694,-151.0,0.00014225,2]
[335417628,1724209835703,-240.505624,0.00014225,2]
[335417629,1724209835713,-151.0,0.00014225,2]
[335417630,1724209835723,-151.0,0.00014225,2]
[335417631,1724209835732,-151.0,0.00014225,2]
[335417632,1724209835742,-151.0,0.00014225,2]
[335417633,1724209835755,-153.161526,0.00014225,2]
[335417634,1724209835767,-151.0,0.00014225,2]
[335417635,1724209835779,-151.372552,0.00014225,2]
[335417636,1724209835791,-218.202186,0.00014225,2]
[335417637,1724209835803,-218.202186,0.00014225,2]
[335417638,1724209835814,-218.202186,0.00014225,2]
[335417639,1724209835824,-218.202186,0.00014225,2]
[335417640,1724209835836,-218.202186,0.00014225,2]
[335417641,1724209835848,-218.202186,0.00014225,2]
[335417642,1724209835859,-218.202186,0.00014225,2]
[335417643,1724209835870,-218.202186,0.00014225,2]
[335417644,1724209835882,-218.202186,0.00014225,2]
[335417645,1724209835893,-218.202186,0.00014225,2]
[335417646,1724209835905,-151.0,0.00014225,2]
[335417647,1724209835916,-151.0,0.00014225,2]
[335417648,1724209835928,-151.0,0.00014225,2]
[335417649,1724209835940,-151.0,0.00014225,2]
[335417650,1724209835952,-151.0,0.00014225,2]
[335417651,1724209835964,-151.0,0.00014225,2]
[335417652,1724209835976,-151.0,0.00014225,2]
[335417653,1724209835987,-151.0,0.00014225,2]
[335417654,1724209835998,-151.0,0.00014225,2]
[335417655,1724209836009,-151.0,0.00014225,2]
[335417656,1724209836020,-602.2374,0.00014225,2]
[335417657,1724209836031,-602.2374,0.00014225,2]
[335417658,1724209836044,-602.2374,0.00014225,2]
[335417659,1724209836056,-602.2374,0.00014225,2]
[335417660,1724209836067,-602.2374,0.00014225,2]
[335417661,1724209836079,-602.2374,0.00014225,2]
[335417662,1724209836090,-602.2374,0.00014225,2]
[335417663,1724209836100,-602.2374,0.00014225,2]
[335417664,1724209836110,-602.2374,0.00014225,2]
[335417665,1724209836121,-602.2374,0.00014225,2]
[335417666,1724209836132,-151.0,0.00014225,2]
[335417667,1724209836143,-151.0,0.00014225,2]
[335417668,1724209836155,-178.694976,0.00014225,2]
[335417669,1724209836166,-555.429439,0.00014225,2]
[335417670,1724209836177,-555.429439,0.00014225,2]
[335417671,1724209836190,-555.429439,0.00014225,2]
[335417672,1724209836201,-555.429439,0.00014225,2]
[335417673,1724209836214,-555.429439,0.00014225,2]
[335417674,1724209836227,-765.258396,0.00014225,2]
[335417675,1724209836238,-765.258396,0.00014225,2]
[335417676,1724209836251,-555.429439,0.00014225,2]
[335417677,1724209836264,-765.258396,0.00014225,2]
[335417678,1724209836275,-555.429439,0.00014225,2]
[335417679,1724209836285,-765.258396,0.00014225,2]
[335417680,1724209836295,-765.258396,0.00014225,2]
[335417681,1724209836306,-555.429439,0.00014225,2]
[335417682,1724209836316,-555.429439,0.00014225,2]
[335417683,1724209836327,-555.429439,0.00014225,2]
[335417684,1724209836339,-765.258396,0.00014225,2]
[335417685,1724209836350,-765.258396,0.00014225,2]
[335417686,1724209836362,-765.258396,0.00014225,2]
[335417687,1724209836374,-765.258396,0.00014225,2]
[335417688,1724209836384,-765.258396,0.00014225,2]
[335417689,1724209836395,-151.0,0.00014225,2]
[335417690,1724209836407,-151.0,0.00014225,2]
[335417691,1724209836419,-151.0,0.00014225,2]
[335417692,1724209836430,-151.0,0.00014225,2]
[335417693,1724209836443,-151.0,0.00014225,2]
[335417694,1724209836458,-151.0,0.00014225,2]
[335417695,1724209836468,-151.0,0.00014225,2]
[335417696,1724209836479,-151.0,0.00014225,2]
[335417697,1724209836490,-151.0,0.00014225,2]
[335417698,1724209836500,-151.0,0.00014225,2]
[335417699,1724209836510,-151.0,0.00014225,2]
[335417700,1724209836521,-151.0,0.00014225,2]
[335417701,1724209836534,-151.0,0.00014225,2]
[335417702,1724209836547,-151.0,0.00014225,2]
[335417703,1724209836558,-151.0,0.00014225,2]
[335417704,1724209836568,-531.59072155,0.00014245,2]
[335417705,1724209836579,-251.73254387,0.00014492,2]
[335417706,1724209836591,-151.987987,0.00014499,2]
[335417707,1724209836601,-1196.472358,0.00014499,2]
[335417708,1724209836613,-1196.472358,0.00014499,2]
[335417709,1724209836623,-362.77401,0.00014499,2]
[335417710,1724209836634,-151.911875,0.00014499,2]
[335417711,1724209836644,-362.77401,0.00014499,2]
[335417712,1724209836655,-337.975096,0.00014499,2]
[335417713,1724209836666,-151.0,0.00014499,2]
[335417714,1724209836677,-337.975096,0.00014499,2]
[335417715,1724209836688,-415.21858786,0.00014517,2]
[335417716,1724209836700,-537.81,0.0001456,2]
[335417717,1724209836714,-151.0,0.00014632,2]
[335417718,1724209836724,-784.93178,0.00014632,2]
[335417719,1724209836734,-784.93178,0.00014632,2]
[335417720,1724209836744,-400.0,0.00014671,2]
[335417721,1724209836755,-796.413897,0.00014681,2]
[335417722,1724209836766,-796.413897,0.00014681,2]
[335417723,1724209836777,-1142.107648,0.00014681,2]
[335417724,1724209836788,-1142.107648,0.00014681,2]
[335417725,1724209836798,-156.271583,0.00014681,2]
[335417726,1724209836809,-156.271583,0.00014681,2]
[335417727,1724209836819,-201.436954,0.00014681,2]
[335417728,1724209836830,-201.436954,0.00014681,2]
[335417729,1724209836841,-493.579171,0.00014681,2]
[335417730,1724209836851,-493.579171,0.00014681,2]
[335417731,1724209836862,-151.0,0.00014681,2]
[335417732,1724209836873,-151.0,0.00014681,2]
[335417733,1724209836884,-218.202186,0.00014681,2]
[335417734,1724209836895,-218.202186,0.00014681,2]
[335417735,1724209836906,-170.983588,0.00014681,2]
[335417736,1724209836917,-151.0,0.00014681,2]
[335417737,1724209836928,-602.2374,0.00014681,2]
[335417738,1724209836939,-602.2374,0.00014681,2]
[335417739,1724209836949,-555.429439,0.00014681,2]
[335417740,1724209836960,-765.258396,0.00014681,2]
[335417741,1724209836970,-555.429439,0.00014681,2]
[335417742,1724209836981,-765.258396,0.00014681,2]
[335417743,1724209836992,-158.352953,0.00014681,2]
[335417744,1724209837002,-151.0,0.00014681,2]
[335417745,1724209837013,-151.0,0.00014681,2]
[335417746,1724209837025,-686.95957995,0.00014793,2]
[335417747,1724209837036,-200.0,0.00014873,2]
[335417748,1724209837047,-208.382698,0.00014878,2]
[335417749,1724209837058,-800.0,0.0001493,2]
[335417750,1724209837069,-539.15486565,0.00014989,2]
[335417751,1724209837080,-179.527861,0.0001499,2]
[335417752,1724209837091,-179.527861,0.0001499,2]
[335417753,1724209837103,-28896.22688059,0.0001499,3]
[335417755,1724209837516,-472.04,0.0001499,3]
[335417756,1724209837529,-493.5770007,0.0001499,3]
[335417757,1724209837540,-264.82796935,0.0001499,3]
[335417758,1724209837552,-577.08950482,0.0001499,3]
[335417759,1724209837562,-1670.90790627,0.0001499,3]
[335417760,1724209837574,-1757.76879465,0.0001499,3]
[335417761,1724209837600,-329.57850842,0.00010505,2]
[335417762,1724209837610,-297.28503834,0.0001499,3]
[335417763,1724209837621,-531.90016623,0.0001499,3]
[335417764,1724209837632,-901.1771706,0.0001499,3]
[335417765,1724209837644,-231.37433495,0.0001499,3]
[335417766,1724209837654,-183.961466,0.0001499,2]
[335417767,1724209837664,-155.0,0.00015,2]
[335417768,1724209837674,-7000.0,0.00015,3]
[335417769,1724209837684,-591.04532249,0.00015,2]
[335417770,1724209838729,-756.11201824,0.00010009,2]
[335417771,1724209838741,-520.10642969,0.00010009,2]
[335417772,1724209838751,-2843.43146538,0.00010979,2]
[335417773,1724209838761,-151.0,0.00014073,2]
[335417774,1724209838772,-205.422561,0.00014215,2]
[335417775,1724209838781,-151.0,0.0001499,2]
[335417776,1724209838792,-6227.95467751,0.00015,2]
[335417777,1724209838801,-2000.0,0.00015,4]
[335417778,1724209838810,-2000.0,0.00015,3]
[335417779,1724209838819,-1364.0,0.00015,2]
[335417780,1724209838829,-179.527861,0.00015,2]
[335417781,1724209838838,-179.527861,0.00015,2]
[335417782,1724209838847,-1196.472358,0.00015,2]
[335417783,1724209838856,-1196.472358,0.00015,2]
[335417784,1724209838865,-1196.472358,0.00015,2]
[335417785,1724209838875,-1196.472358,0.00015,2]
[335417786,1724209838884,-362.77401,0.00015,2]
[335417787,1724209838894,-362.77401,0.00015,2]
[335417788,1724209838903,-362.77401,0.00015,2]
[335417789,1724209838913,-362.77401,0.00015,2]
[335417790,1724209838922,-337.975096,0.00015,2]
[335417791,1724209838932,-337.975096,0.00015,2]
[335417792,1724209838942,-151.0,0.00015,2]
[335417793,1724209838952,-151.0,0.00015,2]
[335417794,1724209838963,-337.975096,0.00015,2]
[335417795,1724209838972,-337.975096,0.00015,2]
[335417796,1724209838981,-796.413897,0.00015,2]
[335417797,1724209838991,-796.413897,0.00015,2]
[335417798,1724209839002,-796.413897,0.00015,2]
[335417799,1724209839011,-796.413897,0.00015,2]
[335417800,1724209839021,-1142.107648,0.00015,2]
[335417801,1724209839031,-1142.107648,0.00015,2]
[335417802,1724209839040,-1142.107648,0.00015,2]
[335417803,1724209839050,-1142.107648,0.00015,2]
[335417804,1724209839059,-151.0,0.00015,2]
[335417805,1724209839068,-151.0,0.00015,2]
[335417806,1724209839077,-151.0,0.00015,2]
[335417807,1724209839086,-784.93178,0.00015,2]
[335417808,1724209839095,-784.93178,0.00015,2]
[335417809,1724209839105,-784.93178,0.00015,2]
[335417810,1724209839114,-784.93178,0.00015,2]
[335417811,1724209839123,-784.93178,0.00015,2]
[335417812,1724209839132,-784.93178,0.00015,2]
[335417813,1724209839141,-156.271583,0.00015,2]
[335417814,1724209839150,-156.271583,0.00015,2]
[335417815,1724209839159,-201.436954,0.00015,2]
[335417816,1724209839169,-201.436954,0.00015,2]
[335417817,1724209839178,-201.436954,0.00015,2]
[335417818,1724209839188,-201.436954,0.00015,2]
[335417819,1724209839197,-493.579171,0.00015,2]
[335417820,1724209839206,-493.579171,0.00015,2]
[335417821,1724209839216,-493.579171,0.00015,2]
[335417822,1724209839225,-493.579171,0.00015,2]
[335417823,1724209839234,-151.0,0.00015,2]
[335417824,1724209839243,-151.0,0.00015,2]
[335417825,1724209839252,-151.0,0.00015,2]
[335417826,1724209839261,-151.0,0.00015,2]
[335417827,1724209839270,-151.0,0.00015,2]
[335417828,1724209839279,-151.0,0.00015,2]
[335417829,1724209839287,-218.202186,0.00015,2]
[335417830,1724209839297,-218.202186,0.00015,2]
[335417831,1724209839306,-218.202186,0.00015,2]
[335417832,1724209839315,-218.202186,0.00015,2]
[335417833,1724209839323,-218.202186,0.00015,2]
[335417834,1724209839332,-218.202186,0.00015,2]
[335417835,1724209839341,-151.0,0.00015,2]
[335417836,1724209839350,-160.826166,0.00015,2]
[335417837,1724209839359,-602.2374,0.00015,2]
[335417838,1724209839368,-602.2374,0.00015,2]
[335417839,1724209839377,-602.2374,0.00015,2]
[335417840,1724209839386,-602.2374,0.00015,2]
[335417841,1724209839395,-602.2374,0.00015,2]
[335417842,1724209839404,-602.237404,0.00015,2]
[335417843,1724209839413,-555.429439,0.00015,2]
[335417844,1724209839422,-555.429439,0.00015,2]
[335417845,1724209839431,-555.429439,0.00015,2]
[335417846,1724209839440,-765.258396,0.00015,2]
[335417847,1724209839451,-765.258396,0.00015,2]
[335417848,1724209839461,-92.65544325,0.00015,2]
[335417849,1724209839478,-672.60295275,0.00015,2]
[335417850,1724209839488,-555.429439,0.00015,2]
[335417851,1724209839498,-555.429439,0.00015,2]
[335417852,1724209839507,-555.429431,0.00015,2]
[335417853,1724209839517,-765.258396,0.00015,2]
[335417854,1724209839528,-765.258396,0.00015,2]
[335417855,1724209839539,-765.258396,0.00015,2]
[335417856,1724209839550,-151.0,0.00015,2]
[335417857,1724209839559,-676.90019041,0.00015067,2]
[335417858,1724209839568,-255.52,0.00015068,2]
[335417859,1724209839577,-5872.3,0.00015215,2]
[335417860,1724209839586,-21867.43,0.00015215,2]
[335417861,1724209839596,-395.3,0.00015215,2]
[335417862,1724209839604,-1210.321,0.00015215,2]
[335417863,1724209839613,-1680.413,0.00015215,2]
[335417864,1724209839623,-1081.896,0.00015215,2]
[335417865,1724209839632,-580.15928523,0.00015352,2]
[335417866,1724209839640,-156.271583,0.00015363,2]
[335417867,1724209839649,-201.436954,0.00015363,2]
[335417868,1724209839659,-201.436954,0.00015363,2]
[335417869,1724209839668,-493.579171,0.00015363,2]
[335417870,1724209839677,-493.579171,0.00015363,2]
[335417871,1724209839686,-233.0,0.000154,2]
[335417872,1724209839695,-301.042595,0.00015442,2]
[335417873,1724209839706,-784.93178,0.00015442,2]
[335417874,1724209839715,-784.931775,0.00015442,2]
[335417875,1724209839725,-218.202186,0.00015442,2]
[335417876,1724209839735,-218.202184,0.00015442,2]
[335417877,1724209839744,-18047.0873833,0.00015442,3]
[335417878,1724209839753,-179.527861,0.00015452,2]
[335417879,1724209839762,-179.527861,0.00015452,2]
[335417880,1724209839771,-156.271591,0.00015452,2]
[335417881,1724209839780,-201.436954,0.00015452,2]
[335417882,1724209839789,-201.436958,0.00015452,2]
[335417883,1724209839799,-493.579171,0.00015452,2]
[335417884,1724209839808,-493.579175,0.00015452,2]
[335417885,1724209839821,-150.0,0.00015452,2]
[335417886,1724209839830,-150.0,0.00015452,2]
[335417887,1724209839839,-150.0,0.00015452,2]
[335417888,1724209839849,-686.95957995,0.00015461,2]
[335417889,1724209839858,-150.27,0.00015479,2]
[335417890,1724209839867,-150.0,0.00015479,2]
[335417891,1724209839877,-167.0,0.00015831,2]
[335417892,1724209839886,-167.0,0.00015831,2]
[335417893,1724209839895,-580.15928521,0.00015891,2]
[335417894,1724209839905,-623.80872651,0.00015978,2]
[335417895,1724209839915,-226.22350298,0.00015978,2]
[335417896,1724209839924,-150.0,0.00015978,2]
[335417897,1724209839933,-150.0,0.00015978,2]
[335417898,1724209839941,-289.06190665,0.00015978,2]
[335417899,1724209839951,-150.0,0.00015978,2]
[335417900,1724209839960,-150.0,0.00015978,2]
[335417901,1724209839968,-150.0,0.00015978,2]
[335417902,1724209839978,-150.0,0.00015978,2]
[335417903,1724209839987,-150.0,0.00015978,2]
[335417904,1724209839996,-150.0,0.00015978,2]
[335417905,1724209840006,-150.0,0.00015978,2]
[335417906,1724209840015,-623.80872651,0.00015996,2]
[335417907,1724209840024,-226.22350298,0.00015996,2]
[335417908,1724209840034,-289.06190665,0.00015996,2]
[335417909,1724209840043,-18047.0873833,0.00015997,3]
[335417910,1724209840057,-852.35,0.00016,2]
[335417911,1724209840067,-1502.7277244,0.00016,2]
[335417912,1724209840077,-1196.472358,0.00016,2]
[335417913,1724209840086,-1196.472358,0.00016,2]
[335417914,1724209840096,-362.77401,0.00016,2]
[335417915,1724209840105,-362.77401,0.00016,2]
[335417916,1724209840115,-337.975096,0.00016,2]
[335417917,1724209840125,-151.0,0.00016,2]
[335417918,1724209840134,-337.975096,0.00016,2]
[335417919,1724209840143,-796.413897,0.00016,2]
[335417920,1724209840152,-796.413897,0.00016,2]
[335417921,1724209840162,-1142.107648,0.00016,2]
[335417922,1724209840171,-1142.107648,0.00016,2]
[335417923,1724209840180,-25262.37188903,0.00016007,3]
[335417926,1724209840983,-596.12,0.00016007,3]
[335417927,1724209840995,-381.99203292,0.00016007,3]
[335417928,1724209841187,-1194.05,0.00016007,3]
[335417970,1724209846616,-151.0,0.0001369,2]
[335417972,1724209846626,-151.0,0.0001369,2]
[335417974,1724209846636,-82.15839446,0.00014073,2]
[335418056,1724211031817,-1324.74582988,0.0001,2]
[335418057,1724211031827,-5413.97836727,0.00010009,2]
[335418058,1724211031838,-155.57152762,0.00010097,2]
[335418059,1724211031847,-310.0,0.000105,5]
[335418060,1724211031856,-589.83269241,0.000108,2]
[335418061,1724211031872,-146.6271423,0.000108,2]
[335418062,1724211031882,-1000.0,0.00011,2]
[335418063,1724211031892,-1500.0,0.00012,2]
[335418064,1724211031902,-236.30320966,0.000127,2]
[335418065,1724211031913,-436.54679034,0.000127,2]
[335418066,1724211031923,-505.62,0.0001274,2]
[335418067,1724211031931,-842.41486997,0.00012938,2]
[335418068,1724211031975,-433.80357796,0.00012938,2]
[335418069,1724211031985,-759.40587114,0.00012938,2]
[335418070,1724211031997,-516.81257679,0.00012938,2]
[335418071,1724211032006,-224.69,0.00012938,2]
[335418073,1724211032015,-1023.45878764,0.0001294,2]
[335418075,1724211032025,-1000.0,0.00013,2]
[335418077,1724211032036,-150.99,0.00013,2]
[335418079,1724211032046,-688.91493668,0.00013042,2]
[335418081,1724211032056,-155.4421646,0.00013042,2]
[335418083,1724211032066,-219.4127813,0.00013042,2]
[335418084,1724211032076,-498.49310349,0.00013042,2]
[335418085,1724211032087,-155.0,0.00013042,2]
[335418086,1724211032096,-155.0,0.00013042,2]
[335418087,1724211032106,-270.72830719,0.00013052,2]
[335418088,1724211032117,-629.05909233,0.00013052,2]
[335418089,1724211032127,-314.11694768,0.00013052,2]
[335418090,1724211032136,-368.51502072,0.00013052,2]
[335418091,1724211032145,-401.80618515,0.00013672,2]
[335418092,1724211032155,-401.80618515,0.00013672,2]
[335418093,1724211032164,-155.17057854,0.00013688,2]
[335418094,1724211032174,-563.04014877,0.00013971,2]
[335418095,1724211032183,-1000.0,0.00014,3]
[335418096,1724211032192,-1583.53938934,0.00014,2]
[335418097,1724211032339,-3416.46061066,0.00014,2]
[335418098,1724211032348,-57.66263148,0.00014,2]
[335418099,1724211032359,-1287.63294274,0.00014,2]
[335418100,1724211032370,-2068.48661723,0.00014,2]
[335418101,1724211032381,-264.05668947,0.00014,2]
[335418107,1724211037805,-296.455,0.00014,2]
[335418108,1724211037816,-593.37179197,0.00014,2]
[335418109,1724211037956,-440.13432711,0.00014,2]
[335418110,1724211037966,-538.08610431,0.00014073,2]
[335418111,1724211037977,-1452.20154332,0.00014234,2]
[335418112,1724211037988,-150.0,0.00014245,2]
[335418113,1724211037997,-480.35,0.00014387,2]
[335418114,1724211038007,-172.55,0.00014391,2]
[335418115,1724211038016,-533.88956203,0.00014398,2]
[335418116,1724211038026,-4571.75,0.00014431,2]
[335418117,1724211038035,-603.24,0.00014434,2]
[335418118,1724211038045,-250.0,0.00014448,2]
[335418119,1724211038055,-2710.18,0.000145,2]
[335418120,1724211038067,-4954.04,0.00014508,2]
[335418121,1724211038077,-240.0,0.00014621,2]
[335418122,1724211038087,-200.0,0.00014674,2]
[335418123,1724211038096,-23890.0,0.00014707,2]
[335418125,1724211038106,-153.76838171,0.00014753,2]
[335418128,1724211038121,-152.28261356,0.00014753,2]
[335418130,1724211038131,-863.00712483,0.00014782,2]
[335418265,1724211040223,-713.34302429,0.00014782,2]
[335418266,1724211040232,-1000.0,0.00014841,2]
[335418267,1724211040243,-1000.0,0.00015,3]
[335418268,1724211040252,-676.90019041,0.00015,2]
[335418269,1724211040262,-6137.0,0.00015,2]
[335418270,1724211040271,-505.62,0.00015004,2]
[335418271,1724211040280,-160.0,0.00015095,2]
[335418272,1724211040289,-1195.71,0.00015278,2]
[335418273,1724211040299,-300.98,0.00015278,2]
[335418274,1724211040309,-856.5,0.00015278,2]
[335418275,1724211040319,-300.83,0.00015278,2]
[335418276,1724211040329,-167.69,0.00015278,2]
[335418277,1724211040339,-716.02,0.00015278,2]
[335418278,1724211040349,-268.06,0.00015278,2]
[335418279,1724211040360,-150.0,0.0001537,2]
[335418280,1724211040370,-201.9,0.00015502,2]
[335418281,1724211040380,-439.97,0.00015502,2]
[335418282,1724211040390,-611.33255198,0.00015732,2]
[335418283,1724211040399,-221.69903292,0.00015732,2]
[335418284,1724211040409,-150.0,0.00015732,2]
[335418285,1724211040418,-150.0,0.00015732,2]
[335418286,1724211040427,-150.0,0.00015732,2]
[335418287,1724211040436,-150.0,0.00015732,2]
[335418288,1724211040445,-150.0,0.00015732,2]
[335418289,1724211040454,-150.0,0.00015732,2]
[335418290,1724211040464,-150.0,0.00015732,2]
[335418291,1724211040472,-150.0,0.00015732,2]
[335418292,1724211040482,-150.0,0.00015732,2]
[335418293,1724211040492,-611.33255198,0.00015749,2]
[335418294,1724211040501,-221.69903292,0.00015749,2]
[335418295,1724211040510,-611.33255198,0.00015767,2]
[335418296,1724211040519,-221.69903292,0.00015767,2]
[335418297,1724211040527,-150.0,0.00015768,2]
[335418298,1724211040536,-611.33255198,0.00015784,2]
[335418299,1724211040545,-221.69903292,0.00015784,2]
[335418300,1724211040554,-611.33255198,0.00015802,2]
[335418301,1724211040563,-141.69807251,0.00015802,2]
[335418303,1724211040574,-80.00096041,0.00015802,2]
[335418305,1724211040583,-150.0,0.00015804,2]
[335418306,1724211040592,-430.99903959,0.0001582,2]
[335418311,1724211040629,-180.33351239,0.0001582,2]
[335418313,1724211040638,-221.69903292,0.0001582,2]
[335418315,1724211040648,-167.0,0.00015831,2]
[335418317,1724211040657,-150.0,0.00015834,2]
[335418319,1724211040667,-611.33255198,0.00015837,2]
[335418321,1724211040676,-221.69903292,0.00015837,2]